bitfinex-derivatives/quotes_BNBF0:USTF0_20251203
["timestamp","ask_amount","ask_price","bid_price","bid_amount"]
[1764769814308,0.6818042,903.35,902.72,0.99]
[1764769814503,0.6818042,903.34,902.72,0.99]
[1764769814707,0.6818042,903.33,902.72,0.99]
[1764769814907,0.6818042,903.32,902.72,0.99]
[1764769815107,0.6818042,903.31,902.72,0.99]
[1764769815404,0.6818042,903.3,902.72,0.99]
[1764769815708,0.6818042,903.29,902.72,0.99]
[1764769815909,0.82740827,903.58,902.72,0.99]
[1764769816105,0.68149231,903.57,902.72,0.99]
[1764769816303,0.68149231,903.56,902.72,0.99]
[1764769816608,0.68149231,903.55,902.72,0.99]
[1764769816908,0.68149231,903.54,902.72,0.99]
[1764769817109,0.68149231,903.53,902.72,0.99]
[1764769817310,0.68149231,903.52,902.72,0.99]
[1764769817609,0.68149231,903.51,902.72,0.99]
[1764769817908,0.68149231,903.5,902.72,0.99]
[1764769818105,0.68149231,903.49,902.72,0.99]
[1764769818306,0.68149231,903.48,902.72,0.99]
[1764769818508,0.68149231,903.47,902.72,0.99]
[1764769818708,0.68149231,903.46,902.72,0.99]
[1764769819011,0.68149231,903.45,902.72,0.99]
[1764769819212,0.68149231,903.44,902.72,0.99]
[1764769819409,0.68149231,903.43,902.72,0.99]
[1764769819704,0.68149231,903.42,902.72,0.99]
[1764769819909,0.68149231,903.41,902.72,0.99]
[1764769820110,0.68149231,903.4,902.72,0.99]
[1764769820306,0.68149231,903.39,902.72,0.99]
[1764769820510,0.68149231,903.38,902.72,0.99]
[1764769820711,0.68149231,903.37,902.72,0.99]
[1764769820905,0.68149231,903.36,902.72,0.99]
[1764769821107,0.68149231,903.35,902.72,0.99]
[1764769821312,0.68149231,903.34,902.72,0.99]
[1764769821511,0.68149231,903.33,902.72,0.99]
[1764769821707,0.68149231,903.32,902.72,0.99]
[1764769821911,0.82740827,903.57,902.72,0.99]
[1764769821912,0.68149231,903.31,902.72,0.99]
[1764769822211,0.68149231,903.3,902.72,0.99]
[1764769822409,0.68149231,903.29,902.72,0.99]
[1764769822607,0.68149231,903.28,902.72,0.99]
[1764769822811,0.82740827,903.57,902.72,0.99]
[1764769823009,0.68154656,903.56,902.72,0.99]
[1764769823211,0.68154656,903.55,902.72,0.99]
[1764769823413,0.68154656,903.54,902.72,0.99]
[1764769823613,0.68154656,903.53,902.72,0.99]
[1764769823810,0.68154656,903.52,902.72,0.99]
[1764769824014,0.68154656,903.51,902.72,0.99]
[1764769824215,0.68154656,903.5,902.72,0.99]
[1764769824415,0.68154656,903.49,902.72,0.99]
[1764769824615,0.68154656,903.48,902.72,0.99]
[1764769824911,0.68154656,903.47,902.72,0.99]
[1764769825115,0.68154656,903.46,902.72,0.99]
[1764769825315,0.68154656,903.45,902.72,0.99]
[1764769825511,0.68154656,903.44,902.72,0.99]
[1764769825814,0.68154656,903.43,902.72,0.99]
[1764769826015,0.68154656,903.42,902.72,0.99]
[1764769826215,0.68154656,903.41,902.72,0.99]
[1764769826415,0.68154656,903.4,902.72,0.99]
[1764769826616,0.68154656,903.39,902.72,0.99]
[1764769826816,0.68154656,903.38,902.72,0.99]
[1764769827016,0.68154656,903.37,902.72,0.99]
[1764769827318,0.68154656,903.36,902.72,0.99]
[1764769827516,0.68154656,903.35,902.72,0.99]
[1764769827816,0.68154656,903.34,902.72,0.99]
[1764769828016,0.68154656,903.33,902.72,0.99]
[1764769828212,0.68154656,903.32,902.72,0.99]
[1764769828412,0.68154656,903.31,902.72,0.99]
[1764769828614,0.68154656,903.3,902.72,0.99]
[1764769828816,0.68154656,903.29,902.72,0.99]
[1764769829112,0.82740827,903.65,902.72,0.99]
[1764769829312,0.19261744,903.91,902.72,0.99]
[1764769829313,0.82740827,903.63,902.72,0.99]
[1764769829515,1.50964037,903.62,902.72,0.99]
[1764769829715,0.6822321,903.61,902.72,0.99]
[1764769829918,0.6822321,903.6,902.72,0.99]
[1764769830118,0.6822321,903.59,902.72,0.99]
[1764769830312,0.19261744,903.91,902.72,0.99]
[1764769830313,0.6822321,903.58,902.72,0.99]
[1764769830517,0.6822321,903.57,902.72,0.99]
[1764769830719,0.6822321,903.56,902.72,0.99]
[1764769831014,0.6822321,903.55,902.72,0.99]
[1764769831214,0.6822321,903.54,902.72,0.99]
[1764769831418,0.6822321,903.53,902.72,0.99]
[1764769831616,0.6822321,903.52,902.72,0.99]
[1764769831819,0.6822321,903.51,902.72,0.99]
[1764769832018,0.6822321,903.5,902.72,0.99]
[1764769832220,0.6822321,903.49,902.72,0.99]
[1764769832419,0.6822321,903.48,902.72,0.99]
[1764769832623,0.6822321,903.47,902.72,0.99]
[1764769832916,0.6822321,903.46,902.72,0.99]
[1764769833116,0.6822321,903.45,902.72,0.99]
[1764769833418,0.6822321,903.44,902.72,0.99]
[1764769833721,0.19261744,903.91,902.72,0.99]
[1764769833722,0.6822321,903.43,902.72,0.99]
[1764769834021,0.6822321,903.42,902.72,0.99]
[1764769834220,0.6822321,903.41,902.72,0.99]
[1764769834420,0.6822321,903.4,902.72,0.99]
[1764769834620,0.6822321,903.39,902.72,0.99]
[1764769834917,0.6822321,903.38,902.72,0.99]
[1764769835121,0.6822321,903.37,902.72,0.99]
[1764769835320,0.6822321,903.36,902.72,0.99]
[1764769835520,0.6822321,903.35,902.72,0.99]
[1764769835821,0.6822321,903.34,902.72,0.99]
[1764769836021,0.6822321,903.33,902.72,0.99]
[1764769836222,0.6822321,903.32,902.72,0.99]
[1764769836421,0.6822321,903.31,902.72,0.99]
[1764769836616,0.6822321,903.3,902.72,0.99]
[1764769836818,0.6822321,903.29,902.72,0.99]
[1764769837018,0.6822321,903.28,902.72,0.99]
[1764769837216,0.6822321,903.27,902.72,0.99]
[1764769837421,0.6822321,903.26,902.72,0.99]
[1764769837622,0.6822321,903.25,902.72,0.99]
[1764769837920,0.6822321,903.24,902.72,0.99]
[1764769838118,0.6822321,903.23,902.72,0.99]
[1764769838321,0.6822321,903.22,902.72,0.99]
[1764769838517,0.6822321,903.21,902.72,0.99]
[1764769838821,0.6822321,903.2,902.72,0.99]
[1764769839018,0.6822321,903.19,902.72,0.99]
[1764769839221,0.6822321,903.18,902.72,0.99]
[1764769839517,0.6822321,903.17,902.72,0.99]
[1764769839817,0.6822321,903.16,902.72,0.99]
[1764769840017,0.6822321,903.15,902.72,0.99]
[1764769840320,0.6822321,903.14,902.72,0.99]
[1764769840520,0.6822321,903.13,902.72,0.99]
[1764769840720,0.6822321,903.12,902.72,0.99]
[1764769840918,0.6822321,903.11,902.72,0.99]
[1764769841120,0.6822321,903.1,902.72,0.99]
[1764769841420,0.6822321,903.09,902.72,0.99]
[1764769841618,0.6822321,903.08,902.72,0.99]
[1764769841819,0.6822321,903.07,902.72,0.99]
[1764769842018,0.6822321,903.06,902.72,0.99]
[1764769842319,0.82740827,903.35,902.72,0.99]
[1764769842520,0.68473553,903.34,902.72,0.99]
[1764769842720,0.68473553,903.33,902.72,0.99]
[1764769842925,0.68473553,903.32,902.72,0.99]
[1764769843223,0.68473553,903.31,902.72,0.99]
[1764769843423,0.68473553,903.3,902.72,0.99]
[1764769843625,0.68473553,903.29,902.72,0.99]
[1764769843826,0.68473553,903.28,902.72,0.99]
[1764769844021,0.82740827,903.35,902.72,0.99]
[1764769844022,0.68473553,903.27,902.72,0.99]
[1764769844224,0.68473553,903.26,902.72,0.99]
[1764769844424,0.68473553,903.25,902.72,0.99]
[1764769844625,0.68473553,903.24,902.72,0.99]
[1764769844921,0.68473553,903.23,902.72,0.99]
[1764769845126,0.68473553,903.22,902.72,0.99]
[1764769845323,0.68473553,903.21,902.72,0.99]
[1764769845523,0.68473553,903.2,902.73,1.353]
[1764769845726,0.68473553,903.19,902.73,1.353]
[1764769845927,0.82740827,903.4,902.73,1.353]
[1764769845928,0.68473553,903.18,902.73,1.353]
[1764769846227,0.68473553,903.17,902.73,1.353]
[1764769846428,0.68473553,903.16,902.73,1.353]
[1764769846629,0.68473553,903.15,902.73,1.353]
[1764769846828,0.68473553,903.14,902.73,1.353]
[1764769847029,0.68473553,903.13,902.73,1.353]
[1764769847228,0.68473553,903.12,902.73,1.353]
[1764769847425,0.68473553,903.11,902.73,1.353]
[1764769847627,0.68473553,903.1,902.73,1.353]
[1764769847826,0.68473553,903.09,902.73,1.353]
[1764769848129,0.68473553,903.08,902.73,1.353]
[1764769848329,0.68473553,903.07,902.73,1.353]
[1764769848528,1.09052115,903.47,902.73,1.353]
[1764769848529,0.68473553,903.06,902.73,1.353]
[1764769848725,0.68473553,903.05,902.73,1.353]
[1764769849029,0.68473553,903.04,902.73,1.353]
[1764769849228,0.68473553,903.03,902.73,1.353]
[1764769849527,0.68473553,903.02,902.73,1.353]
[1764769849732,0.68473553,903.01,902.73,1.353]
[1764769849928,0.68473553,903.0,902.73,1.353]
[1764769850128,0.68473553,902.99,902.73,1.353]
[1764769850427,0.68473553,902.98,902.73,1.353]
[1764769850632,0.68473553,902.97,902.73,1.353]
[1764769850831,0.68473553,902.96,902.73,1.353]
[1764769851030,0.68473553,902.95,902.73,1.353]
[1764769851233,0.68473553,902.94,902.73,1.353]
[1764769851433,0.68473553,902.93,902.73,1.353]
[1764769851633,0.68473553,902.92,902.73,1.353]
[1764769851834,0.68473553,902.91,902.73,1.353]
[1764769852034,0.68473553,902.9,902.73,1.353]
[1764769852234,0.68473553,902.89,902.73,1.353]
[1764769852435,0.68473553,902.88,902.73,1.353]
[1764769852738,0.68473553,902.87,902.73,1.353]
[1764769852931,0.68473553,902.86,902.73,1.353]
[1764769853131,0.68473553,902.85,902.73,1.353]
[1764769853330,0.68473553,902.84,902.73,1.353]
[1764769853530,0.82740827,903.13,902.73,1.353]
[1764769853734,0.66382019,903.12,902.73,1.353]
[1764769853933,0.66382019,903.11,902.73,1.353]
[1764769854135,0.82740827,903.07,902.73,1.353]
[1764769854338,0.66382019,903.06,902.73,1.353]
[1764769854634,0.66382019,903.05,902.73,1.353]
[1764769854936,0.82740827,903.08,902.73,1.353]
[1764769854937,0.66382019,903.04,902.73,1.353]
[1764769855137,0.66382019,903.03,902.73,1.353]
[1764769855437,0.66382019,903.02,902.73,1.353]
[1764769855733,0.66382019,903.01,902.73,1.353]
[1764769856035,0.66382019,903.0,902.73,1.353]
[1764769856235,0.66382019,902.99,902.73,1.353]
[1764769856429,0.66382019,902.98,902.73,1.353]
[1764769856635,0.66382019,902.97,902.73,1.353]
[1764769856835,0.66382019,902.96,902.73,1.353]
[1764769857035,0.66382019,902.95,902.73,1.353]
[1764769857332,0.66382019,902.94,902.73,1.353]
[1764769857533,0.66382019,902.93,902.73,1.353]
[1764769857736,0.66382019,902.92,902.73,1.353]
[1764769857934,0.82740827,903.12,902.73,1.353]
[1764769857935,0.66382019,902.91,902.73,1.353]
[1764769858137,0.66382019,902.9,902.73,1.353]
[1764769858335,0.66382019,902.89,902.73,1.353]
[1764769858535,0.66382019,902.88,902.73,1.353]
[1764769858737,0.66382019,902.87,902.73,1.353]
[1764769858935,0.66382019,902.86,902.73,1.353]
[1764769859234,0.66382019,902.85,902.73,1.353]
[1764769859434,0.82740827,903.15,902.73,1.353]
[1764769859638,0.66275459,903.14,902.73,1.353]
[1764769859833,0.66275459,903.13,902.73,1.353]
[1764769860036,1.49016286,903.12,902.73,1.353]
[1764769860232,0.82740827,903.09,902.73,1.353]
[1764769860438,0.82740827,903.05,902.73,1.353]
[1764769860635,0.66275459,903.04,902.73,1.353]
[1764769861138,0.66275459,903.03,902.73,1.353]
[1764769861338,0.66275459,903.02,902.73,1.353]
[1764769861538,0.66275459,903.01,902.73,1.353]
[1764769861737,0.66275459,903.0,902.73,1.353]
[1764769861940,0.66275459,902.99,902.73,1.353]
[1764769862141,0.66275459,902.98,902.73,1.353]
[1764769862342,0.66275459,902.97,902.73,1.353]
[1764769862542,0.66275459,902.96,902.73,1.353]
[1764769862737,0.66275459,902.95,902.73,1.353]
[1764769862942,0.66275459,902.94,902.73,1.353]
[1764769863243,0.66275459,902.93,902.73,1.353]
[1764769863437,0.66275459,902.92,902.73,1.353]
[1764769863643,0.66275459,902.91,902.73,1.353]
[1764769863839,0.66275459,902.9,902.73,1.353]
[1764769864036,0.66275459,902.89,902.73,1.353]
[1764769864238,0.66275459,902.88,902.73,1.353]
[1764769864442,0.66275459,902.87,902.73,1.353]
[1764769864642,0.66275459,902.86,902.73,1.353]
[1764769864841,0.66275459,902.85,902.73,1.353]
[1764769865040,0.66275459,902.84,902.73,1.353]
[1764769865243,0.66275459,902.83,902.73,1.353]
[1764769865538,0.66275459,902.82,902.73,1.353]
[1764769865739,0.66275459,902.81,902.73,1.353]
[1764769865944,0.66275459,902.8,902.73,1.353]
[1764769866142,0.66275459,902.79,902.73,1.353]
[1764769866444,0.66275459,902.78,902.73,1.353]
[1764769866644,0.82740827,903.01,902.73,1.353]
[1764769866645,0.66275459,902.77,902.73,1.353]
[1764769866843,0.66275459,902.76,902.73,1.353]
[1764769867042,0.66275459,902.75,902.73,1.353]
[1764769867344,0.66275459,902.74,902.73,1.353]
[1764769868043,0.82740827,903.04,902.73,1.353]
[1764769868248,0.66132776,903.03,902.73,1.353]
[1764769868449,1.48873603,903.03,902.73,1.353]
[1764769868745,0.66132776,903.02,902.73,1.353]
[1764769869348,0.66132776,903.01,902.73,1.353]
[1764769869544,0.66132776,903.0,902.73,1.353]
[1764769869746,0.66132776,902.99,902.73,1.353]
[1764769869945,0.66132776,902.98,902.73,1.353]
[1764769870151,0.66132776,902.97,902.73,1.353]
[1764769870351,0.66132776,902.96,902.73,1.353]
[1764769870651,0.66132776,902.95,902.73,1.353]
[1764769870952,0.66132776,902.94,902.73,1.353]
[1764769871152,0.66132776,902.93,902.73,1.353]
[1764769871351,0.66132776,902.92,902.73,1.353]
[1764769871549,0.66132776,902.91,902.73,1.353]
[1764769871755,0.66132776,902.9,902.73,1.353]
[1764769872050,0.66132776,902.89,902.73,1.353]
[1764769872249,0.66132776,902.88,902.73,1.353]
[1764769872553,0.66132776,902.87,902.73,1.353]
[1764769872753,0.66132776,902.86,902.73,1.353]
[1764769873054,0.66132776,902.85,902.73,1.353]
[1764769873253,0.66132776,902.84,902.73,1.353]
[1764769873455,0.66132776,902.83,902.73,1.353]
[1764769873654,0.66132776,902.82,902.73,1.353]
[1764769873852,0.66132776,902.81,902.73,1.353]
[1764769874050,0.66132776,902.8,902.73,1.353]
[1764769874353,0.66132776,902.79,902.73,1.353]
[1764769874554,0.66132776,902.78,902.73,1.353]
[1764769874852,0.66132776,902.77,902.73,1.353]
[1764769875057,0.66132776,902.76,902.73,1.353]
[1764769875353,0.66132776,902.75,902.73,1.353]
[1764769875549,0.66132776,902.74,902.73,1.353]
[1764769877250,0.66132776,902.96,902.73,1.353]
[1764769877450,0.66132776,902.95,902.73,1.353]
[1764769877655,0.66132776,902.94,902.68,1.446]
[1764769877850,0.66132776,902.93,902.68,1.446]
[1764769878052,0.66132776,902.92,902.68,1.446]
[1764769878251,0.66132776,902.91,902.68,1.446]
[1764769878452,0.66132776,902.9,902.68,1.446]
[1764769878758,0.66132776,902.89,902.68,1.446]
[1764769878950,0.66132776,902.88,902.68,1.446]
[1764769879154,0.66132776,902.87,902.68,1.446]
[1764769879450,0.82740827,902.99,902.68,1.446]
[1764769879451,0.66132776,902.86,902.68,1.446]
[1764769879651,0.66132776,902.85,902.68,1.446]
[1764769879851,0.66132776,902.84,902.68,1.446]
[1764769880056,0.66132776,902.83,902.68,1.446]
[1764769880256,0.66132776,902.82,902.68,1.446]
[1764769880557,0.66132776,902.81,902.68,1.446]
[1764769880854,0.66132776,902.8,902.68,1.446]
[1764769881158,0.66132776,902.79,902.68,1.446]
[1764769881353,0.66132776,902.78,902.68,1.446]
[1764769881555,0.66132776,902.77,902.68,1.446]
[1764769881758,0.66132776,902.76,902.68,1.446]
[1764769881958,0.66132776,902.75,902.68,1.446]
[1764769882157,0.66132776,902.74,902.68,1.446]
[1764769882354,0.66132776,902.73,902.68,1.446]
[1764769882657,0.66132776,902.72,902.68,1.446]
[1764769882857,0.66132776,902.71,902.68,1.446]
[1764769883053,0.66132776,902.7,902.68,1.446]
[1764769883254,0.82740827,902.98,902.68,1.446]
[1764769883454,0.66592816,902.97,902.68,1.446]
[1764769883658,1.49333643,902.97,902.68,1.446]
[1764769883856,0.66592816,902.96,902.68,1.446]
[1764769884058,0.82740827,902.89,902.68,1.446]
[1764769884256,1.09052115,903.05,902.68,1.446]
[1764769884257,1.49333643,902.88,902.68,1.446]
[1764769884461,0.66592816,902.87,902.68,1.446]
[1764769884657,1.49333643,902.87,902.68,1.446]
[1764769884857,0.66592816,902.86,902.68,1.446]
[1764769885061,0.66592816,902.85,902.68,1.446]
[1764769885261,0.82740827,902.72,902.68,1.446]
[1764769885461,0.82740827,902.69,902.68,1.446]
[1764769885660,1.49333643,902.69,902.68,1.446]
[1764769886461,0.66592816,902.69,902.64,0.984]
[1764769886666,0.66592816,902.68,902.64,0.984]
[1764769886862,0.66592816,902.68,900.86,0.15649905]
[1764769886863,0.66592816,902.67,900.86,0.15649905]
[1764769887063,0.82057321,902.45,901.37,0.19281808]
[1764769887261,0.66592816,902.44,901.37,0.19281808]
[1764769887465,0.66592816,902.43,901.37,0.19281808]
[1764769887664,0.66592816,902.42,901.37,0.19281808]
[1764769887864,0.66592816,902.41,901.37,0.19281808]
[1764769888165,0.66592816,902.4,901.37,0.19281808]
[1764769888465,0.66592816,902.39,901.37,0.19281808]
[1764769888664,0.66592816,902.38,901.37,0.19281808]
[1764769888861,0.66592816,902.37,901.37,0.19281808]
[1764769889065,0.66592816,902.36,901.37,0.19281808]
[1764769889260,0.82057321,902.48,901.37,0.19281808]
[1764769889261,0.66592816,902.35,901.37,0.19281808]
[1764769889467,0.66592816,902.34,901.37,0.19281808]
[1764769889661,0.66592816,902.33,901.37,0.19281808]
[1764769889865,0.66592816,902.32,901.37,0.19281808]
[1764769890166,0.66592816,902.31,901.37,0.19281808]
[1764769890361,0.66592816,902.3,901.37,0.19281808]
[1764769890564,0.66592816,902.29,901.37,0.19281808]
[1764769890762,0.66592816,902.28,901.38,1.427]
[1764769890965,0.66592816,902.27,901.38,1.427]
[1764769891263,0.66592816,902.26,901.38,1.427]
[1764769891465,0.66592816,902.25,901.38,1.427]
[1764769891665,0.66592816,902.24,901.38,1.427]
[1764769891863,0.66592816,902.23,901.38,1.427]
[1764769892167,0.66592816,902.22,901.38,1.427]
[1764769892367,0.66592816,902.21,901.38,1.427]
[1764769892567,0.82057321,902.5,901.38,1.427]
[1764769892868,0.6370074,902.49,901.38,1.427]
[1764769893067,0.6370074,902.48,901.38,1.427]
[1764769893265,0.6370074,902.47,901.38,1.427]
[1764769893569,0.6370074,902.46,901.38,1.427]
[1764769893868,0.6370074,902.45,901.38,1.427]
[1764769894169,0.6370074,902.44,901.38,1.427]
[1764769894464,0.6370074,902.43,901.38,1.427]
[1764769894668,0.6370074,902.42,901.38,1.427]
[1764769894963,0.6370074,902.41,901.38,1.427]
[1764769895270,0.6370074,902.4,901.38,1.427]
[1764769895568,0.6370074,902.39,901.38,1.427]
[1764769895768,0.6370074,902.38,901.38,1.427]
[1764769895969,0.6370074,902.37,901.38,1.427]
[1764769896170,0.6370074,902.36,901.38,1.427]
[1764769896369,0.6370074,902.35,901.38,1.427]
[1764769896670,0.6370074,902.34,901.38,1.427]
[1764769896864,0.6370074,902.33,901.38,1.427]
[1764769897069,0.6370074,902.32,901.38,1.427]
[1764769897269,0.6370074,902.31,901.38,1.427]
[1764769897468,0.6370074,902.3,901.38,1.427]
[1764769897769,0.6370074,902.29,901.38,1.427]
[1764769897966,0.6370074,902.28,901.38,1.427]
[1764769898170,0.6370074,902.27,901.38,1.427]
[1764769898370,0.6370074,902.26,901.38,1.427]
[1764769898570,0.82057321,902.54,901.38,1.427]
[1764769898768,0.63627655,902.53,901.38,1.427]
[1764769899070,0.63627655,902.52,901.38,1.427]
[1764769899267,0.63627655,902.51,901.38,1.427]
[1764769899472,0.63627655,902.5,901.38,1.427]
[1764769899667,0.63627655,902.49,901.38,1.427]
[1764769899967,0.63627655,902.48,901.38,1.427]
[1764769900167,0.63627655,902.47,901.38,1.427]
[1764769900469,0.63627655,902.46,901.38,1.427]
[1764769900667,0.63627655,902.45,901.38,1.427]
[1764769900872,0.63627655,902.44,901.38,1.427]
[1764769901072,0.63627655,902.43,901.38,1.427]
[1764769901272,0.63627655,902.42,901.38,1.427]
[1764769901473,0.63627655,902.41,901.38,1.427]
[1764769901669,0.63627655,902.4,901.38,1.427]
[1764769901869,0.63627655,902.39,901.38,1.427]
[1764769902170,0.63627655,902.38,901.38,1.427]
[1764769902374,0.63627655,902.37,901.38,1.427]
[1764769902570,0.63627655,902.36,901.38,1.427]
[1764769902769,0.63627655,902.35,901.38,1.427]
[1764769903070,0.63627655,902.34,901.38,1.427]
[1764769903273,5.6538729,902.6,901.38,1.427]
[1764769903274,0.63627655,902.33,901.38,1.427]
[1764769903470,0.63627655,902.32,901.38,1.427]
[1764769903774,0.63627655,902.31,901.38,1.427]
[1764769903975,0.63627655,902.3,901.38,1.427]
[1764769904174,0.63627655,902.29,901.38,1.427]
[1764769904375,0.63627655,902.28,901.38,1.427]
[1764769904574,0.63627655,902.27,901.38,1.427]
[1764769904776,0.63627655,902.26,901.38,1.427]
[1764769904977,0.63627655,902.25,901.38,1.427]
[1764769905179,0.63627655,902.24,901.38,1.427]
[1764769905372,1.09409761,902.56,901.38,1.427]
[1764769905373,0.63627655,902.23,901.38,1.427]
[1764769905571,0.63627655,902.22,901.38,1.427]
[1764769905776,0.63627655,902.21,901.38,1.427]
[1764769905976,0.63627655,902.2,901.38,1.427]
[1764769906173,5.6538729,902.6,901.38,1.427]
[1764769906174,0.63627655,902.19,901.38,1.427]
[1764769906374,0.63627655,902.18,901.38,1.427]
[1764769906577,0.63627655,902.17,901.38,1.427]
[1764769906777,0.63627655,902.16,901.38,1.427]
[1764769906978,0.82057321,902.49,901.38,1.427]
[1764769907278,0.63369006,902.48,901.38,1.427]
[1764769907477,5.6538729,902.6,901.38,1.427]
[1764769907478,0.63369006,902.47,901.38,1.427]
[1764769907677,0.63369006,902.46,901.38,1.427]
[1764769907979,0.63369006,902.45,901.38,1.427]
[1764769908176,0.63369006,902.44,901.38,1.427]
[1764769908379,0.63369006,902.43,901.38,1.427]
[1764769908579,0.63369006,902.42,901.38,1.427]
[1764769908874,0.63369006,902.41,901.38,1.427]
[1764769909076,0.63369006,902.4,901.38,1.427]
[1764769909278,0.63369006,902.39,901.38,1.427]
[1764769909477,0.63369006,902.38,901.38,1.427]
[1764769909675,0.63369006,902.37,901.38,1.427]
[1764769909878,0.63369006,902.36,901.38,1.427]
[1764769910077,0.63369006,902.35,901.38,1.427]
[1764769910278,0.63369006,902.34,901.38,1.427]
[1764769910483,0.63369006,902.33,901.38,1.427]
[1764769910678,0.63369006,902.32,901.38,1.427]
[1764769910880,0.63369006,902.31,901.38,1.427]
[1764769911084,0.63369006,902.3,901.38,1.427]
[1764769911278,0.63369006,902.29,901.38,1.427]
[1764769911479,0.82057321,902.56,901.38,1.427]
[1764769911480,0.63369006,902.28,901.38,1.427]
[1764769911778,0.63369006,902.27,901.38,1.427]
[1764769912082,0.82057321,902.56,901.38,1.427]
[1764769912284,0.63459764,902.55,901.38,1.427]
[1764769912482,0.63459764,902.54,901.38,1.427]
[1764769912682,0.63459764,902.53,901.38,1.427]
[1764769912882,0.63459764,902.52,901.38,1.427]
[1764769913082,0.63459764,902.51,901.38,1.427]
[1764769913280,0.63459764,902.5,901.38,1.427]
[1764769913482,0.82057321,902.55,901.38,1.427]
[1764769913483,0.63459764,902.49,901.38,1.427]
[1764769913680,0.63459764,902.48,901.38,1.427]
[1764769913883,0.63459764,902.47,901.38,1.427]
[1764769914078,0.63459764,902.46,901.38,1.427]
[1764769914283,0.63459764,902.45,901.38,1.427]
[1764769914483,0.63459764,902.44,901.38,1.427]
[1764769914783,0.63459764,902.43,901.38,1.427]
[1764769914983,0.63459764,902.42,901.38,1.427]
[1764769915181,5.6538729,902.6,901.38,1.427]
[1764769915182,0.63459764,902.41,901.38,1.427]
[1764769915381,0.63459764,902.4,901.38,1.427]
[1764769915584,0.63459764,902.39,901.38,1.427]
[1764769915786,0.63459764,902.38,901.38,1.427]
[1764769915980,0.63459764,902.37,901.38,1.427]
[1764769916184,0.63459764,902.36,901.38,1.427]
[1764769916387,0.63459764,902.35,901.38,1.427]
[1764769916681,0.63459764,902.34,901.38,1.427]
[1764769916884,0.63459764,902.33,901.38,1.427]
[1764769917082,0.63459764,902.32,901.38,1.427]
[1764769917286,0.63459764,902.31,901.38,1.427]
[1764769917482,0.63459764,902.3,901.38,1.427]
[1764769917681,0.63459764,902.29,901.38,1.427]
[1764769917985,0.63459764,902.28,901.38,1.427]
[1764769918183,0.63459764,902.27,901.38,1.427]
[1764769918487,0.63459764,902.26,901.38,1.427]
[1764769918683,0.63459764,902.25,901.38,1.427]
[1764769918887,0.63459764,902.24,901.38,1.427]
[1764769919183,0.63459764,902.23,901.38,1.427]
[1764769919388,0.63459764,902.22,901.38,1.427]
[1764769919583,0.63459764,902.21,901.38,1.427]
[1764769919789,0.63459764,902.2,901.38,1.427]
[1764769920086,0.63459764,902.19,901.38,1.427]
[1764769920286,0.63586937,902.18,901.38,1.427]
[1764769920591,0.63585819,902.17,901.38,1.427]
[1764769920891,0.63585819,902.16,901.38,1.427]
[1764769921189,0.63585819,902.15,901.38,1.427]
[1764769921390,0.63585819,902.14,901.38,1.427]
[1764769921589,0.63585819,902.13,901.38,1.427]
[1764769921785,0.63585819,902.12,901.38,1.427]
[1764769921990,0.63585819,902.11,901.38,1.427]
[1764769922289,0.63585819,902.1,901.38,1.427]
[1764769922489,0.63585819,902.09,901.38,1.427]
[1764769922683,5.6538729,902.6,901.38,1.427]
[1764769922684,0.63585819,902.08,901.38,1.427]
[1764769922888,0.63585819,902.07,901.38,1.427]